fUST/lending_fUST_20250302
["ID","MTS","AMOUNT","RATE_DAILY","PERIOD"]
[354957491,1740845481046,-563.87,0.00028767,2]
[354957492,1740845481056,-3648.85,0.00028767,2]
[354957493,1740845481066,-1298.35,0.00028767,2]
[354957494,1740845481076,-500.0,0.00028767,2]
[354957495,1740845481087,-607.48,0.00028767,2]
[354957496,1740845481097,-1508.37,0.00028767,2]
[354957497,1740845481107,-500.0,0.00028767,2]
[354957498,1740845481117,-500.0,0.00028767,2]
[354957499,1740845481127,-500.0,0.00028767,2]
[354957500,1740845481138,-544.28,0.00028767,2]
[354957501,1740845481148,-500.0,0.00028767,2]
[354957502,1740845481159,-500.0,0.00028767,2]
[354957503,1740845481170,-500.0,0.00028767,2]
[354957504,1740845481180,-500.0,0.00028767,2]
[354957505,1740845481190,-319.1493919,0.00028767,2]
[354957506,1740845481200,-2428.02,0.00028767,2]
[354957507,1740845481210,-10399.1,0.00028767,2]
[354957508,1740845481221,-500.0,0.00028767,2]
[354957509,1740845481231,-500.0,0.00028767,2]
[354957510,1740845481240,-500.0,0.00028767,2]
[354957511,1740845481250,-500.0,0.00028767,2]
[354957512,1740845481260,-2276.78,0.00028767,2]
[354957513,1740845481270,-775.3,0.00028767,2]
[354957514,1740845481280,-723.15,0.00028767,2]
[354957515,1740845481290,-3370.6,0.00028767,2]
[354957516,1740845481300,-1321.62,0.00028767,2]
[354957517,1740845481311,-1750.68,0.00028767,2]
[354957518,1740845481320,-762.75,0.00028767,2]
[354957519,1740845481331,-500.0,0.00028767,2]
[354957520,1740845481341,-989.74,0.00028767,2]
[354957521,1740845481351,-500.0,0.00028767,2]
[354957522,1740845481361,-17096.48,0.00028767,2]
[354957523,1740845481371,-2503.96,0.00028767,2]
[354957524,1740845481382,-2157.47,0.00028767,2]
[354957525,1740845481392,-675.89,0.00028767,2]
[354957526,1740845481402,-504.06,0.00028767,2]
[354957527,1740845481412,-500.0,0.00028767,2]
[354957528,1740845481422,-500.0,0.00028767,2]
[354957529,1740845481432,-2911.22,0.00028767,2]
[354957530,1740845481442,-500.0,0.00028767,2]
[354957531,1740845481452,-225456.27,0.00028767,2]
[354957532,1740845481463,-500.0,0.00028767,2]
[354957533,1740845481477,-631.21,0.00028767,2]
[354957534,1740845481487,-500.0,0.00028767,2]
[354957535,1740845481497,-9650.55,0.00028767,2]
[354957536,1740845481506,-500.0,0.00028767,2]
[354957537,1740845481516,-500.0,0.00028767,2]
[354957538,1740845481527,-1303.18,0.00028767,5]
[354957539,1740845481537,-699.03,0.00028767,2]
[354957540,1740845481547,-510.24,0.00028767,2]
[354957541,1740845481557,-1183.5,0.00028767,2]
[354957542,1740845481567,-500.0,0.00028767,2]
[354957543,1740845481576,-4420.81,0.00028767,2]
[354957544,1740845481588,-921.23,0.00028767,2]
[354957545,1740845481598,-1327.23,0.00028767,2]
[354957546,1740845481608,-1581.37,0.00028767,2]
[354957547,1740845481618,-1506.63,0.00028767,2]
[354957548,1740845481628,-1069.69,0.00028767,2]
[354957549,1740845481638,-768.55,0.00028767,2]
[354957550,1740845481648,-5083.88,0.00028767,2]
[354957551,1740845481658,-557.86,0.00028767,2]
[354957552,1740845481668,-1462.35,0.00028767,2]
[354957553,1740845481677,-2348.6,0.00028767,2]
[354957554,1740845481687,-500.0,0.00028767,2]
[354957555,1740845481697,-2044.68,0.00028767,2]
[354957556,1740845481708,-533.35,0.00028767,2]
[354957557,1740845481719,-500.0,0.00028767,2]
[354957558,1740845481729,-5976.45,0.00028767,2]
[354957559,1740845481739,-500.0,0.00028767,2]
[354957560,1740845481749,-2355.23,0.00028767,2]
[354957561,1740845481759,-780.39,0.00028767,2]
[354957562,1740845481769,-500.0,0.00028767,2]
[354957563,1740845481780,-12948.86,0.00028767,2]
[354957564,1740845481790,-1113.59,0.00028767,2]
[354957565,1740845481800,-1854.03,0.00028767,2]
[354957566,1740845481810,-500.0,0.00028767,2]
[354957567,1740845481820,-500.0,0.00028767,2]
[354957568,1740845481830,-645.91,0.00028767,2]
[354957569,1740845481840,-500.0,0.00028767,2]
[354957570,1740845481853,-500.0,0.00028767,2]
[354957571,1740845481869,-854.47,0.00028767,2]
[354957572,1740845481881,-549.93,0.00028767,2]
[354957573,1740845481892,-5672.75,0.00028767,2]
[354957574,1740845481905,-45482.56,0.00028767,2]
[354957575,1740845481919,-1730.18,0.00028767,2]
[354957576,1740845481929,-500.0,0.00028767,2]
[354957577,1740845481940,-1333.51,0.00028767,2]
[354957578,1740845481949,-780.68,0.00028767,2]
[354957579,1740845481961,-3090.36,0.00028767,2]
[354957580,1740845481972,-2015.18,0.00028767,2]
[354957581,1740845481982,-500.0,0.00028767,2]
[354957582,1740845481992,-820.13,0.00028767,2]
[354957583,1740845482002,-959.44,0.00028767,2]
[354957584,1740845482012,-509.80764887,0.00028767,2]
[354957585,1740845482022,-500.0,0.00028767,2]
[354957586,1740845482032,-1053.09,0.00028767,2]
[354957587,1740845482042,-500.0,0.00028767,2]
[354957588,1740845482053,-3033.51,0.00028767,2]
[354957589,1740845482063,-500.0,0.00028767,2]
[354957590,1740845482072,-3413.39,0.00028767,2]
[354957591,1740845482082,-861.63,0.00028767,2]
[354957592,1740845482092,-1956.94,0.00028767,2]
[354957593,1740845482102,-1430.2,0.00028767,2]
[354957594,1740845482111,-8129.77,0.00028767,2]
[354957595,1740845482121,-500.0,0.00028767,2]
[354957596,1740845482131,-1043.22,0.00028767,2]
[354957597,1740845482140,-3893.91,0.00028767,2]
[354957598,1740845482150,-1959.28,0.00028767,2]
[354957599,1740845482160,-2415.63,0.00028767,2]
[354957600,1740845482170,-500.0,0.00028767,2]
[354957601,1740845482179,-13931.51,0.00028767,2]
[354957602,1740845482189,-500.0,0.00028767,2]
[354957603,1740845482199,-500.0,0.00028767,2]
[354957604,1740845482209,-500.0,0.00028767,2]
[354957605,1740845482219,-500.0,0.00028767,2]
[354957606,1740845482230,-500.0,0.00028767,2]
[354957607,1740845482240,-500.0,0.00028767,2]
[354957608,1740845482250,-1759.12,0.00028767,2]
[354957609,1740845482261,-2492.29,0.00028767,2]
[354957610,1740845482270,-611.54,0.00028767,2]
[354957611,1740845482280,-608.93694024,0.00028767,2]
[354957612,1740845482290,-500.0,0.00028767,2]
[354957613,1740845482299,-659.83,0.00028767,2]
[354957614,1740845482309,-500.0,0.00028767,2]
[354957615,1740845482318,-561.47,0.00028767,2]
[354957616,1740845482328,-3917.28,0.00028767,2]
[354957617,1740845482338,-1518.78467694,0.00028768,5]
[354957618,1740845482348,-496.66436742,0.00028797,5]
[354957619,1740845482358,-14206.89,0.00028866,2]
[354957620,1740845482368,-1767.99,0.00028866,2]
[354957621,1740845482378,-500.0,0.00028866,2]
[354957622,1740845482387,-500.0,0.00028867,2]
[354957623,1740845482396,-244.638184,0.00028867,7]
[354957624,1740845482406,-244.638184,0.00028867,7]
[354957625,1740845482415,-5026.14,0.00028867,2]
[354957626,1740845482425,-500.0,0.00028867,2]
[354957627,1740845482435,-728.43,0.00028867,2]
[354957628,1740845482445,-500.0,0.00028867,2]
[354957629,1740845482455,-644.61,0.00028867,2]
[354957630,1740845482465,-500.0,0.00028867,2]
[354957631,1740845482475,-519.39817465,0.00028867,2]
[354957632,1740845482485,-500.0,0.00028867,2]
[354957633,1740845482559,-500.0,0.00028867,2]
[354957634,1740845482570,-500.0,0.00028867,2]
[354957635,1740845482579,-500.0,0.00028867,2]
[354957636,1740845482590,-500.0,0.00028867,2]
[354957637,1740845482600,-1658.82,0.00028867,2]
[354957638,1740845482610,-2016.43,0.00028867,2]
[354957639,1740845482620,-833.33,0.00028867,2]
[354957640,1740845482630,-896.87,0.00028867,2]
[354957641,1740845482640,-729.57,0.00028867,2]
[354957642,1740845482649,-1800.73,0.00028867,2]
[354957643,1740845482659,-500.0,0.00028867,2]
[354957644,1740845482668,-500.0,0.00028867,2]
[354957645,1740845482679,-644.3,0.00028867,2]
[354957646,1740845482689,-3233.17,0.00028867,2]
[354957647,1740845482699,-2006.78,0.00028867,2]
[354957648,1740845482708,-500.0,0.00028867,2]
[354957649,1740845482719,-302.0,0.000289,2]
[354957650,1740845482729,-863.6703976,0.00028907,4]
[354957651,1740845482739,-2842.39531304,0.00028941,2]
[354957652,1740845482749,-746.68,0.00029041,2]
[354957653,1740845482759,-244.638184,0.00029041,7]
[354957654,1740845482770,-912.94,0.00029041,2]
[354957655,1740845482780,-244.638194,0.00029041,7]
[354957656,1740845482790,-500.0,0.00029041,2]
[354957657,1740845482800,-500.0,0.00029041,2]
[354957658,1740845482810,-500.0,0.00029041,2]
[354957659,1740845482820,-500.0,0.00029041,2]
[354957660,1740845482830,-721.67,0.00029041,2]
[354957661,1740845482839,-500.0,0.00029041,2]
[354957662,1740845482849,-815.62,0.00029041,2]
[354957663,1740845482859,-1158.25,0.00029041,2]
[354957664,1740845482869,-500.0,0.00029041,2]
[354957665,1740845482881,-500.0,0.00029041,2]
[354957666,1740845482890,-824.65,0.00029041,2]
[354957667,1740845482900,-500.0,0.00029041,2]
[354957668,1740845482910,-500.0,0.00029041,2]
[354957669,1740845482920,-821.43,0.00029041,2]
[354957670,1740845482930,-1588.65,0.00029041,2]
[354957671,1740845482939,-500.0,0.00029041,2]
[354957672,1740845482952,-1443.29,0.00029041,2]
[354957673,1740845482962,-500.0,0.00029041,2]
[354957674,1740845482973,-566.34,0.00029041,2]
[354957675,1740845482982,-500.0,0.00029041,2]
[354957676,1740845482992,-1143.22,0.00029041,2]
[354957677,1740845483002,-500.0,0.00029041,2]
[354957678,1740845483012,-500.0,0.00029041,2]
[354957679,1740845483022,-1244.64,0.00029041,2]
[354957680,1740845483031,-558.07,0.00029041,2]
[354957681,1740845483040,-603.75,0.00029041,2]
[354957682,1740845483050,-500.0,0.00029041,2]
[354957683,1740845483060,-1166.91,0.00029041,2]
[354957684,1740845483069,-500.94,0.00029041,2]
[354957685,1740845483079,-500.0,0.00029041,2]
[354957686,1740845483088,-500.0,0.00029041,2]
[354957687,1740845483098,-786.24,0.00029041,2]
[354957688,1740845483108,-796.34,0.00029041,2]
[354957689,1740845483117,-500.0,0.00029041,2]
[354957690,1740845483127,-500.0,0.00029041,2]
[354957691,1740845483137,-1158.67,0.00029041,2]
[354957692,1740845483146,-571.97,0.00029041,2]
[354957693,1740845483156,-673.5,0.00029041,2]
[354957694,1740845483165,-996.94,0.00029041,2]
[354957695,1740845483175,-1190.79,0.00029041,2]
[354957696,1740845483185,-500.0,0.00029041,2]
[354957697,1740845483194,-725.34,0.00029041,2]
[354957698,1740845483203,-500.0,0.00029041,2]
[354957699,1740845483213,-500.0,0.00029041,2]
[354957700,1740845483223,-500.0,0.00029041,2]
[354957701,1740845483232,-500.0,0.00029041,2]
[354957702,1740845483241,-500.0,0.00029041,2]
[354957703,1740845483251,-500.0,0.00029041,2]
[354957704,1740845483261,-860.6,0.00029041,2]
[354957705,1740845483271,-500.0,0.00029041,2]
[354957706,1740845483281,-500.0,0.00029041,2]
[354957707,1740845483291,-500.0,0.00029041,2]
[354957708,1740845483301,-527.98,0.00029041,2]
[354957709,1740845483311,-500.0,0.00029041,2]
[354957710,1740845483321,-889.37,0.00029041,2]
[354957711,1740845483332,-721.11,0.00029041,2]
[354957712,1740845483342,-1227.77,0.00029041,2]
[354957713,1740845483353,-869.26,0.00029041,2]
[354957714,1740845483362,-500.0,0.00029041,2]
[354957715,1740845483373,-680.49,0.00029041,2]
[354957716,1740845483383,-500.0,0.00029041,2]
[354957717,1740845483392,-907.98,0.00029041,2]
[354957718,1740845483402,-1111.41,0.00029041,2]
[354957719,1740845483412,-500.0,0.00029041,2]
[354957720,1740845483422,-500.0,0.00029041,2]
[354957721,1740845483432,-1426.32,0.00029041,2]
[354957722,1740845483442,-667.54,0.00029041,2]
[354957723,1740845483452,-500.0,0.00029041,2]
[354957724,1740845483461,-330.41358846,0.00029041,2]
[354957725,1740845483472,-500.0,0.00029041,2]
[354957726,1740845483481,-500.0,0.00029041,2]
[354957727,1740845483492,-500.0,0.00029041,2]
[354957728,1740845483502,-1657.67,0.00029041,2]
[354957729,1740845483512,-500.0,0.00029041,2]
[354957730,1740845483522,-500.0,0.00029041,2]
[354957731,1740845483531,-773.48,0.00029041,2]
[354957732,1740845483541,-500.0,0.00029041,2]
[354957733,1740845483550,-500.0,0.00029041,2]
[354957734,1740845483560,-500.0,0.00029041,2]
[354957735,1740845483570,-670.02,0.00029041,2]
[354957736,1740845483579,-500.0,0.00029041,2]
[354957737,1740845483588,-762.63,0.00029041,2]
[354957738,1740845483598,-500.0,0.00029041,2]
[354957739,1740845483608,-1176.21,0.00029041,2]
[354957740,1740845483617,-1291.3,0.00029041,2]
[354957741,1740845483627,-752.75,0.00029041,2]
[354957742,1740845483637,-500.0,0.00029041,2]
[354957743,1740845483647,-1787.86,0.00029041,2]
[354957744,1740845483657,-500.0,0.00029041,2]
[354957745,1740845483667,-500.0,0.00029041,2]
[354957746,1740845483676,-548.87449115,0.00029041,2]
[354957747,1740845483687,-612.51,0.00029041,2]
[354957748,1740845483696,-500.0,0.00029041,2]
[354957749,1740845483706,-500.0,0.00029041,2]
[354957750,1740845483717,-500.0,0.00029041,2]
[354957751,1740845483726,-1099.17,0.00029041,2]
[354957752,1740845483736,-500.0,0.00029041,2]
[354957753,1740845483745,-500.0,0.00029041,2]
[354957754,1740845483755,-673.42,0.00029041,2]
[354957755,1740845483765,-500.0,0.00029041,2]
[354957756,1740845483775,-500.0,0.00029041,2]
[354957757,1740845483784,-1099.45,0.00029041,2]
[354957758,1740845483794,-500.0,0.00029041,2]
[354957759,1740845483804,-500.0,0.00029041,2]
[354957760,1740845483814,-500.0,0.00029041,2]
[354957761,1740845483824,-536.71,0.00029041,2]
[354957762,1740845483834,-500.0,0.00029041,2]
[354957763,1740845483845,-632.14,0.00029041,2]
[354957764,1740845483855,-1905.85,0.00029041,2]
[354957765,1740845483865,-500.0,0.00029041,2]
[354957766,1740845483878,-500.0,0.00029041,2]
[354957767,1740845483888,-500.0,0.00029041,2]
[354957768,1740845483897,-1685.79,0.00029041,2]
[354957769,1740845483908,-500.0,0.00029041,2]
[354957770,1740845483918,-564.6,0.00029041,2]
[354957771,1740845483928,-1059.85,0.00029041,2]
[354957772,1740845483938,-500.0,0.00029041,2]
[354957773,1740845483952,-500.0,0.00029041,2]
[354957774,1740845483965,-500.0,0.00029041,2]
[354957775,1740845483977,-732.83,0.00029041,2]
[354957776,1740845483986,-500.0,0.00029041,2]
[354957777,1740845483996,-500.0,0.00029041,2]
[354957778,1740845484007,-500.0,0.00029041,2]
[354957779,1740845484017,-740.07,0.00029041,2]
[354957780,1740845484027,-1458.62,0.00029041,2]
[354957781,1740845484037,-1284.29,0.00029041,2]
[354957782,1740845484047,-543.24,0.00029041,2]
[354957783,1740845484057,-500.0,0.00029041,2]
[354957784,1740845484066,-500.0,0.00029041,2]
[354957785,1740845484076,-500.0,0.00029041,2]
[354957786,1740845484086,-747.81,0.00029041,2]
[354957787,1740845484096,-778.76,0.00029041,2]
[354957788,1740845484105,-500.0,0.00029041,2]
[354957789,1740845484115,-500.0,0.00029041,2]
[354957790,1740845484125,-500.0,0.00029041,2]
[354957791,1740845484134,-500.0,0.00029041,2]
[354957792,1740845484145,-1431.27,0.00029041,2]
[354957793,1740845484155,-1335.29,0.00029041,2]
[354957794,1740845484165,-1315.24,0.00029041,2]
[354957795,1740845484176,-673.47,0.00029041,2]
[354957796,1740845484186,-959.71,0.00029041,2]
[354957797,1740845484195,-716.19,0.00029041,2]
[354957798,1740845484205,-578.59,0.00029041,2]
[354957799,1740845484215,-1517.25,0.00029041,2]
[354957800,1740845484225,-500.0,0.00029041,2]
[354957801,1740845484234,-500.0,0.00029041,2]
[354957802,1740845484244,-500.0,0.00029041,2]
[354957803,1740845484254,-2094.38,0.00029041,2]
[354957804,1740845484264,-575.46,0.00029041,2]
[354957805,1740845484275,-500.0,0.00029041,2]
[354957806,1740845484286,-500.0,0.00029041,2]
[354957807,1740845484296,-500.0,0.00029041,2]
[354957808,1740845484305,-2170.83,0.00029041,2]
[354957809,1740845484315,-531.7,0.00029041,2]
[354957810,1740845484325,-2252.21,0.00029041,2]
[354957811,1740845484335,-1741.22,0.00029041,2]
[354957812,1740845484345,-591.88,0.00029041,2]
[354957813,1740845484354,-826.09,0.00029041,2]
[354957814,1740845484364,-664.91,0.00029041,2]
[354957815,1740845484374,-500.0,0.00029041,2]
[354957816,1740845484383,-502.03,0.00029041,2]
[354957817,1740845484393,-680.92,0.00029041,2]
[354957818,1740845484403,-1744.53,0.00029041,2]
[354957819,1740845484413,-500.0,0.00029041,2]
[354957820,1740845484423,-685.6,0.00029041,2]
[354957821,1740845484433,-1572.62,0.00029041,2]
[354957822,1740845484443,-500.0,0.00029041,2]
[354957823,1740845484454,-500.0,0.00029041,2]
[354957824,1740845484464,-500.0,0.00029041,2]
[354957825,1740845484475,-500.0,0.00029041,2]
[354957826,1740845484485,-1531.22,0.00029041,2]
[354957827,1740845484496,-3254.62,0.00029041,2]
[354957828,1740845484506,-523.7105927,0.00029041,2]
[354957829,1740845484515,-500.0,0.00029041,2]
[354957830,1740845484526,-1370.24,0.00029041,2]
[354957831,1740845484537,-611.48,0.00029041,2]
[354957832,1740845484547,-500.0,0.00029041,2]
[354957833,1740845484557,-509.94,0.00029041,2]
[354957834,1740845484567,-964.9,0.00029041,2]
[354957835,1740845484577,-7197.11,0.00029041,2]
[354957836,1740845484587,-355.49674567,0.00029041,2]
[354957837,1740845484597,-1123.34,0.00029041,2]
[354957838,1740845484608,-600.56,0.00029041,2]
[354957839,1740845484619,-649.22,0.00029041,2]
[354957840,1740845484634,-710.98,0.00029041,2]
[354957841,1740845484645,-500.0,0.00029041,2]
[354957842,1740845484655,-539.97,0.00029041,2]
[354957843,1740845484665,-563.87,0.00029041,2]
[354957844,1740845484675,-3648.85,0.00029041,2]
[354957845,1740845484685,-1298.35,0.00029041,2]
[354957846,1740845484699,-607.48,0.00029041,2]
[354957847,1740845484718,-1508.37,0.00029041,2]
[354957848,1740845484728,-500.0,0.00029041,2]
[354957849,1740845484739,-500.0,0.00029041,2]
[354957850,1740845484748,-500.0,0.00029041,2]
[354957851,1740845484758,-544.28,0.00029041,2]
[354957852,1740845484769,-500.0,0.00029041,2]
[354957853,1740845484779,-500.0,0.00029041,2]
[354957854,1740845484789,-500.0,0.00029041,2]
[354957855,1740845484798,-500.0,0.00029041,2]
[354957856,1740845484808,-2428.02,0.00029041,2]
[354957857,1740845484818,-10399.1,0.00029041,2]
[354957858,1740845484828,-500.0,0.00029041,2]
[354957859,1740845484839,-500.0,0.00029041,2]
[354957860,1740845484849,-500.0,0.00029041,2]
[354957861,1740845484859,-500.0,0.00029041,2]
[354957862,1740845484871,-2276.78,0.00029041,2]
[354957863,1740845484881,-775.3,0.00029041,2]
[354957864,1740845484892,-723.15,0.00029041,2]
[354957865,1740845484902,-3370.6,0.00029041,2]
[354957866,1740845484912,-1321.62,0.00029041,2]
[354957867,1740845484922,-1750.68,0.00029041,2]
[354957868,1740845484932,-762.75,0.00029041,2]
[354957869,1740845484943,-500.0,0.00029041,2]
[354957870,1740845484953,-989.74,0.00029041,2]
[354957871,1740845484963,-500.0,0.00029041,2]
[354957872,1740845484974,-17096.48,0.00029041,2]
[354957873,1740845484984,-2503.96,0.00029041,2]
[354957874,1740845484994,-2157.47,0.00029041,2]
[354957875,1740845485004,-675.89,0.00029041,2]
[354957876,1740845485014,-504.06,0.00029041,2]
[354957877,1740845485024,-500.0,0.00029041,2]
[354957878,1740845485034,-500.0,0.00029041,2]
[354957879,1740845485044,-2911.22,0.00029041,2]
[354957880,1740845485054,-500.0,0.00029041,2]
[354957881,1740845485065,-225456.27,0.00029041,2]
[354957882,1740845485075,-500.0,0.00029041,2]
[354957883,1740845485085,-631.21,0.00029041,2]
[354957884,1740845485096,-500.0,0.00029041,2]
[354957885,1740845485106,-9650.55,0.00029041,2]
[354957886,1740845485117,-500.0,0.00029041,2]
[354957887,1740845485127,-500.0,0.00029041,2]
[354957888,1740845485140,-1303.18,0.00029041,5]
[354957889,1740845485150,-699.03,0.00029041,2]
[354957890,1740845485160,-510.24,0.00029041,2]
[354957891,1740845485171,-1183.5,0.00029041,2]
[354957892,1740845485181,-500.0,0.00029041,2]
[354957893,1740845485192,-4420.81,0.00029041,2]
[354957894,1740845485202,-921.23,0.00029041,2]
[354957895,1740845485213,-1327.23,0.00029041,2]
[354957896,1740845485226,-1581.37,0.00029041,2]
[354957897,1740845485236,-1506.63,0.00029041,2]
[354957898,1740845485247,-1069.69,0.00029041,2]
[354957899,1740845485257,-768.55,0.00029041,2]
[354957900,1740845485268,-5083.88,0.00029041,2]
[354957901,1740845485278,-557.86,0.00029041,2]
[354957902,1740845485288,-1462.35,0.00029041,2]
[354957903,1740845485298,-2348.6,0.00029041,2]
[354957904,1740845485308,-500.0,0.00029041,2]
[354957905,1740845485318,-2044.68,0.00029041,2]
[354957906,1740845485328,-533.35,0.00029041,2]
[354957907,1740845485339,-500.0,0.00029041,2]
[354957908,1740845485349,-5976.45,0.00029041,2]
[354957909,1740845485359,-500.0,0.00029041,2]
[354957910,1740845485370,-2355.23,0.00029041,2]
[354957911,1740845485380,-780.39,0.00029041,2]
[354957912,1740845485391,-500.0,0.00029041,2]
[354957913,1740845485402,-12948.86,0.00029041,2]
[354957914,1740845485412,-1113.59,0.00029041,2]
[354957915,1740845485423,-1854.03,0.00029041,2]
[354957916,1740845485433,-500.0,0.00029041,2]
[354957917,1740845485443,-645.91,0.00029041,2]
[354957918,1740845485453,-500.0,0.00029041,2]
[354957919,1740845485463,-500.0,0.00029041,2]
[354957920,1740845485475,-854.47,0.00029041,2]
[354957921,1740845485485,-549.93,0.00029041,2]
[354957922,1740845485496,-5672.75,0.00029041,2]
[354957923,1740845485506,-45482.56,0.00029041,2]
[354957924,1740845485516,-1730.18,0.00029041,2]
[354957925,1740845485526,-500.0,0.00029041,2]
[354957926,1740845485536,-1333.51,0.00029041,2]
[354957927,1740845485546,-780.68,0.00029041,2]
[354957928,1740845485556,-3090.36,0.00029041,2]
[354957929,1740845485567,-2015.18,0.00029041,2]
[354957930,1740845485577,-500.0,0.00029041,2]
[354957931,1740845485587,-820.13,0.00029041,2]
[354957932,1740845485597,-959.44,0.00029041,2]
[354957933,1740845485608,-500.0,0.00029041,2]
[354957934,1740845485619,-1053.09,0.00029041,2]
[354957935,1740845485629,-500.0,0.00029041,2]
[354957936,1740845485639,-3033.51,0.00029041,2]
[354957937,1740845485649,-378.53370787,0.00029041,2]
[354957938,1740845485659,-3413.39,0.00029041,2]
[354957939,1740845485670,-861.63,0.00029041,2]
[354957940,1740845485680,-1956.94,0.00029041,2]
[354957941,1740845485690,-1430.2,0.00029041,2]
[354957942,1740845485701,-8129.77,0.00029041,2]
[354957943,1740845485711,-500.0,0.00029041,2]
[354957944,1740845485722,-1043.22,0.00029041,2]
[354957945,1740845485733,-3893.91,0.00029041,2]
[354957946,1740845485743,-1959.28,0.00029041,2]
[354957947,1740845485753,-2415.63,0.00029041,2]
[354957948,1740845485763,-500.0,0.00029041,2]
[354957949,1740845485774,-13931.51,0.00029041,2]
[354957950,1740845485784,-500.0,0.00029041,2]
[354957951,1740845485795,-500.0,0.00029041,2]
[354957952,1740845485806,-500.0,0.00029041,2]
[354957953,1740845485816,-500.0,0.00029041,2]
[354957954,1740845485827,-500.0,0.00029041,2]
[354957955,1740845485838,-500.0,0.00029041,2]
[354957956,1740845485848,-1759.12,0.00029041,2]
[354957957,1740845485859,-2492.29,0.00029041,2]
[354957958,1740845485872,-611.54,0.00029041,2]
[354957959,1740845485882,-500.0,0.00029041,2]
[354957960,1740845485892,-659.83,0.00029041,2]
[354957961,1740845485902,-500.0,0.00029041,2]
[354957962,1740845485913,-561.47,0.00029041,2]
[354957963,1740845485923,-10966.70657543,0.0002907,2]
[354957964,1740845485933,-1787.65887836,0.00029076,2]
[354957965,1740845485944,-14206.89,0.0002914,2]
[354957966,1740845485955,-1767.99,0.0002914,2]
[354957967,1740845485964,-500.0,0.0002914,2]
[354957968,1740845485975,-209.62608574,0.00029141,2]
[354957969,1740845485985,-5026.14,0.00029141,2]
[354957970,1740845485996,-500.0,0.00029141,2]
[354957971,1740845486006,-728.43,0.00029141,2]
[354957972,1740845486016,-500.0,0.00029141,2]
[354957973,1740845486026,-644.61,0.00029141,2]
[354957974,1740845486036,-500.0,0.00029141,2]
[354957975,1740845486047,-500.0,0.00029141,2]
[354957976,1740845486057,-500.0,0.00029141,2]
[354957977,1740845486067,-500.0,0.00029141,2]
[354957978,1740845486077,-500.0,0.00029141,2]
[354957979,1740845486087,-500.0,0.00029141,2]
[354957980,1740845486098,-1658.82,0.00029141,2]
[354957981,1740845486108,-2016.43,0.00029141,2]
[354957982,1740845486118,-833.33,0.00029141,2]
[354957983,1740845486128,-896.87,0.00029141,2]
[354957984,1740845486138,-729.57,0.00029141,2]
[354957985,1740845486148,-1800.73,0.00029141,2]
[354957986,1740845486159,-500.0,0.00029141,2]
[354957987,1740845486169,-500.0,0.00029141,2]
[354957988,1740845486180,-644.3,0.00029141,2]
[354957989,1740845486190,-3233.17,0.00029141,2]
[354957990,1740845486200,-2006.78,0.00029141,2]